[Event "*** SCC Grand Prix: Titled Tuesday Blitz"]
[Site "Chess.com"]
[Date "2020.07.14"]
[Round "3"]
[White "MuradNuri"]
[Black "AurumO"]
[Result "1-0"]
[WhiteElo "2447"]
[BlackElo "1981"]
[TimeControl "180+1"]
[EndTime "10:29:11 PDT"]
[Termination "MuradNuri won on time"]

1. e4 {[%clk 0:03:00.9]} 1... c5 {[%clk 0:02:59.5]} 2. Nf3 {[%clk 0:03:00.9]}
2... Nc6 {[%clk 0:02:59.6]} 3. d4 {[%clk 0:02:59.7]} 3... cxd4 {[%clk
0:03:00.5]} 4. Nxd4 {[%clk 0:03:00.6]} 4... g6 {[%clk 0:03:00.8]} 5. Nc3 {[%clk
0:02:57.1]} 5... Bg7 {[%clk 0:02:58.9]} 6. Nb3 {[%clk 0:02:57.7]} 6... Nf6
{[%clk 0:02:57.8]} 7. Be2 {[%clk 0:02:58.3]} 7... d6 {[%clk 0:02:58.4]} 8. O-O
{[%clk 0:02:58.7]} 8... O-O {[%clk 0:02:59.1]} 9. Re1 {[%clk 0:02:58.1]} 9... a6
{[%clk 0:02:58.8]} 10. Bg5 {[%clk 0:02:52.5]} 10... Be6 {[%clk 0:02:57.5]} 11.
Bf1 {[%clk 0:02:51.9]} 11... Qc7 {[%clk 0:02:56.9]} 12. Qd2 {[%clk 0:02:43.8]}
12... Rfd8 {[%clk 0:02:56.3]} 13. Nd5 {[%clk 0:02:44]} 13... Bxd5 {[%clk
0:02:48.1]} 14. exd5 {[%clk 0:02:44.9]} 14... Ne5 {[%clk 0:02:38.9]} 15. c3
{[%clk 0:02:45]} 15... h6 {[%clk 0:02:36.7]} 16. Bh4 {[%clk 0:02:20.4]} 16...
Re8 {[%clk 0:02:23.4]} 17. Rad1 {[%clk 0:01:17.3]} 17... Rac8 {[%clk 0:02:15.2]}
18. Nc1 {[%clk 0:01:11.8]} 18... b5 {[%clk 0:02:12.4]} 19. Nd3 {[%clk
0:01:10.6]} 19... Nc4 {[%clk 0:02:12.1]} 20. Qe2 {[%clk 0:01:00.8]} 20... Nxd5
{[%clk 0:01:53.3]} 21. Qf3 {[%clk 0:01:00.8]} 21... Nf6 {[%clk 0:01:49.3]} 22.
b3 {[%clk 0:00:58]} 22... Ne5 {[%clk 0:01:39.4]} 23. Nxe5 {[%clk 0:00:57.9]}
23... dxe5 {[%clk 0:01:40.3]} 24. c4 {[%clk 0:00:58.6]} 24... e4 {[%clk
0:01:32]} 25. Qh3 {[%clk 0:00:52.9]} 25... b4 {[%clk 0:01:26.5]} 26. Bg3 {[%clk
0:00:43.1]} 26... Qc5 {[%clk 0:01:16.1]} 27. Bf4 {[%clk 0:00:43.3]} 27... g5
{[%clk 0:01:13.6]} 28. Be3 {[%clk 0:00:43.4]} 28... Qc6 {[%clk 0:01:08.8]} 29.
Qf5 {[%clk 0:00:43.4]} 29... e6 {[%clk 0:01:00.4]} 30. Qa5 {[%clk 0:00:43.8]}
30... Ng4 {[%clk 0:00:51.4]} 31. Bd4 {[%clk 0:00:39]} 31... e5 {[%clk
0:00:49.5]} 32. Bb2 {[%clk 0:00:35.1]} 32... Qf6 {[%clk 0:00:46]} 33. Re2 {[%clk
0:00:32.6]} 33... Qf4 {[%clk 0:00:42.9]} 34. g3 {[%clk 0:00:32.3]} 34... Qf3
{[%clk 0:00:39.9]} 35. Qd5 {[%clk 0:00:30]} 35... Rcd8 {[%clk 0:00:29.7]} 36.
Qxd8 {[%clk 0:00:30.1]} 36... Rxd8 {[%clk 0:00:30.6]} 37. Rxd8+ {[%clk
0:00:30.4]} 37... Kh7 {[%clk 0:00:31]} 38. Rc2 {[%clk 0:00:30.3]} 38... e3
{[%clk 0:00:23.2]} 39. fxe3 {[%clk 0:00:30.3]} 39... Nxe3 {[%clk 0:00:20.5]} 40.
Rf2 {[%clk 0:00:30.4]} 40... Qe4 {[%clk 0:00:15.6]} 41. Bd3 {[%clk 0:00:31]}
41... Qxd3 {[%clk 0:00:14.9]} 42. Rxd3 {[%clk 0:00:31.9]} 42... Ng4 {[%clk
0:00:13.3]} 43. Rxf7 {[%clk 0:00:32.3]} 43... Kg6 {[%clk 0:00:09.8]} 44. Rdd7
{[%clk 0:00:32.2]} 44... e4 {[%clk 0:00:03.7]} 45. Rxg7+ {[%clk 0:00:31.8]}
45... Kf5 {[%clk 0:00:03.7]} 46. Rd5+ {[%clk 0:00:31.5]} 46... Ke6 {[%clk
0:00:03.9]} 47. Rg6+ {[%clk 0:00:32.4]} 47... Ke7 {[%clk 0:00:02.9]} 48. Rxa6
{[%clk 0:00:33.3]} 48... e3 {[%clk 0:00:02.8]} 49. c5 {[%clk 0:00:33.9]} 49...
e2 {[%clk 0:00:01.8]} 50. Re5+ {[%clk 0:00:29.8]} 50... Nxe5 {[%clk 0:00:01.4]}
51. Kf2 {[%clk 0:00:30.7]} 51... Nd3+ {[%clk 0:00:01.6]} 52. Kxe2 {[%clk
0:00:31.1]} 52... Nxb2 {[%clk 0:00:02.5]} 53. Rxh6 {[%clk 0:00:31.4]} 1-0

[Event "*** SCC Grand Prix: Titled Tuesday Blitz"]
[Site "Chess.com"]
[Date "2020.07.14"]
[Round "3"]
[White "rasmussvane"]
[Black "Shubinkirill2003"]
[Result "1/2-1/2"]
[WhiteElo "2883"]
[BlackElo "2639"]
[TimeControl "180+1"]
[EndTime "10:29:13 PDT"]
[Termination "Game drawn by repetition"]

1. Nf3 {[%clk 0:03:00.9]} 1... Nf6 {[%clk 0:02:59.8]} 2. g3 {[%clk 0:03:01.2]}
2... b5 {[%clk 0:02:59.1]} 3. d4 {[%clk 0:02:59.9]} 3... Bb7 {[%clk 0:02:58.3]}
4. Bg2 {[%clk 0:03:00.3]} 4... e6 {[%clk 0:02:58.2]} 5. Bg5 {[%clk 0:03:00.3]}
5... c5 {[%clk 0:02:55.9]} 6. c3 {[%clk 0:02:57.9]} 6... cxd4 {[%clk 0:02:52.1]}
7. cxd4 {[%clk 0:02:56.3]} 7... Be7 {[%clk 0:02:49.9]} 8. Qd3 {[%clk 0:02:50.4]}
8... a6 {[%clk 0:02:38.6]} 9. O-O {[%clk 0:02:49.7]} 9... O-O {[%clk 0:02:33.9]}
10. Bxf6 {[%clk 0:02:48.9]} 10... Bxf6 {[%clk 0:02:33.6]} 11. Ng5 {[%clk
0:02:49.5]} 11... Bxg5 {[%clk 0:02:29.4]} 12. Bxb7 {[%clk 0:02:50.1]} 12... Ra7
{[%clk 0:02:29.6]} 13. Bg2 {[%clk 0:02:50.1]} 13... d5 {[%clk 0:02:23.5]} 14.
Nc3 {[%clk 0:02:40.7]} 14... Nc6 {[%clk 0:02:16.4]} 15. Rad1 {[%clk 0:02:33.3]}
15... f5 {[%clk 0:02:10.3]} 16. e3 {[%clk 0:02:18.1]} 16... Qd6 {[%clk
0:02:04.1]} 17. Rc1 {[%clk 0:02:10.6]} 17... Na5 {[%clk 0:01:36.4]} 18. Ne2
{[%clk 0:02:05.2]} 18... Rc7 {[%clk 0:01:25.9]} 19. Rxc7 {[%clk 0:02:05.1]}
19... Qxc7 {[%clk 0:01:26.8]} 20. Rc1 {[%clk 0:02:05.7]} 20... Qd6 {[%clk
0:01:23.5]} 21. Qc3 {[%clk 0:02:01.5]} 21... b4 {[%clk 0:01:06]} 22. Qc5 {[%clk
0:01:54.6]} 22... Qxc5 {[%clk 0:01:05.4]} 23. Rxc5 {[%clk 0:01:55.5]} 23... Bd8
{[%clk 0:01:03.8]} 24. Nc1 {[%clk 0:01:46]} 24... Bb6 {[%clk 0:00:39.8]} 25. Rc2
{[%clk 0:01:46]} 25... g5 {[%clk 0:00:34.4]} 26. Bf1 {[%clk 0:01:45.9]} 26... f4
{[%clk 0:00:31.5]} 27. Nd3 {[%clk 0:01:19.7]} 27... fxe3 {[%clk 0:00:30.7]} 28.
fxe3 {[%clk 0:01:17]} 28... Nc4 {[%clk 0:00:30.5]} 29. Bh3 {[%clk 0:01:13.6]}
29... Nxe3 {[%clk 0:00:24.8]} 30. Bxe6+ {[%clk 0:00:45.8]} 30... Kg7 {[%clk
0:00:22.6]} 31. Rf2 {[%clk 0:00:46.7]} 31... Bxd4 {[%clk 0:00:20.4]} 32. Rxf8
{[%clk 0:00:45.2]} 32... Kxf8 {[%clk 0:00:21.3]} 33. Kf2 {[%clk 0:00:33.5]}
33... a5 {[%clk 0:00:20.6]} 34. Ke2 {[%clk 0:00:29.6]} 34... Ke7 {[%clk
0:00:19.5]} 35. Bg8 {[%clk 0:00:28.9]} 35... h5 {[%clk 0:00:18.8]} 36. h3 {[%clk
0:00:26.9]} 36... h4 {[%clk 0:00:17]} 37. gxh4 {[%clk 0:00:17.8]} 37... gxh4
{[%clk 0:00:17.9]} 38. b3 {[%clk 0:00:17.1]} 38... Kd6 {[%clk 0:00:17.6]} 39.
Nf4 {[%clk 0:00:15.6]} 39... Bb6 {[%clk 0:00:08.3]} 40. Kd3 {[%clk 0:00:13.5]}
40... d4 {[%clk 0:00:06.8]} 41. Ng6 {[%clk 0:00:09.8]} 41... Nf5 {[%clk
0:00:06.4]} 42. Nf4 {[%clk 0:00:07.9]} 42... Ne3 {[%clk 0:00:04.3]} 43. Ng6
{[%clk 0:00:08.1]} 43... Nf5 {[%clk 0:00:04.3]} 44. Nf4 {[%clk 0:00:04.7]} 44...
Ne3 {[%clk 0:00:04.5]} 1/2-1/2

[Event "*** SCC Grand Prix: Titled Tuesday Blitz"]
[Site "Chess.com"]
[Date "2020.07.14"]
[Round "3"]
[White "Gabrielian_Artur"]
[Black "Alexsur1981"]
[Result "1-0"]
[WhiteElo "2802"]
[BlackElo "2529"]
[TimeControl "180+1"]
[EndTime "10:29:17 PDT"]
[Termination "Gabrielian_Artur won by resignation"]

1. e4 {[%clk 0:03:00.9]} 1... c5 {[%clk 0:02:53.1]} 2. Nc3 {[%clk 0:03:00.5]}
2... Nc6 {[%clk 0:02:52]} 3. Bb5 {[%clk 0:03:00]} 3... Nd4 {[%clk 0:02:51.6]} 4.
Bc4 {[%clk 0:03:00.3]} 4... e6 {[%clk 0:02:50.5]} 5. Nf3 {[%clk 0:03:00.2]} 5...
Ne7 {[%clk 0:02:49.5]} 6. Nxd4 {[%clk 0:02:58.4]} 6... cxd4 {[%clk 0:02:50.4]}
7. Ne2 {[%clk 0:02:58.4]} 7... Nc6 {[%clk 0:02:50.9]} 8. O-O {[%clk 0:02:54.8]}
8... Be7 {[%clk 0:02:45.8]} 9. d3 {[%clk 0:02:54.3]} 9... O-O {[%clk 0:02:43.4]}
10. Ng3 {[%clk 0:02:54.1]} 10... d6 {[%clk 0:02:40.1]} 11. a3 {[%clk 0:02:53.1]}
11... Bd7 {[%clk 0:02:28.1]} 12. f4 {[%clk 0:02:52.7]} 12... Rc8 {[%clk
0:02:27]} 13. f5 {[%clk 0:02:50.2]} 13... Ne5 {[%clk 0:02:26.1]} 14. Bb3 {[%clk
0:02:49.7]} 14... Bg5 {[%clk 0:02:17]} 15. Qh5 {[%clk 0:02:30]} 15... Bxc1
{[%clk 0:02:15.6]} 16. Raxc1 {[%clk 0:02:29.7]} 16... Kh8 {[%clk 0:01:38.9]} 17.
Rf4 {[%clk 0:02:03.1]} 17... g5 {[%clk 0:01:38.1]} 18. Rff1 {[%clk 0:01:44.5]}
18... exf5 {[%clk 0:01:28.4]} 19. exf5 {[%clk 0:01:41]} 19... f6 {[%clk
0:01:23.2]} 20. Ne4 {[%clk 0:01:32]} 20... Qe7 {[%clk 0:01:21.6]} 21. Rce1
{[%clk 0:01:30.5]} 21... a5 {[%clk 0:01:14.9]} 22. Qe2 {[%clk 0:01:04.9]} 22...
a4 {[%clk 0:01:12.9]} 23. Ba2 {[%clk 0:01:04.6]} 23... Rfe8 {[%clk 0:01:03.3]}
24. h3 {[%clk 0:00:57.5]} 24... Qf8 {[%clk 0:00:57.2]} 25. Qf2 {[%clk
0:00:56.9]} 25... Nc6 {[%clk 0:00:55]} 26. Be6 {[%clk 0:00:54.4]} 26... Rc7
{[%clk 0:00:52.4]} 27. Bd5 {[%clk 0:00:44.4]} 27... Re5 {[%clk 0:00:47.2]} 28.
Bxc6 {[%clk 0:00:43.8]} 28... Bxc6 {[%clk 0:00:48.1]} 29. Qxd4 {[%clk
0:00:42.9]} 29... Bxe4 {[%clk 0:00:48.6]} 30. Rxe4 {[%clk 0:00:40.6]} 30... Rxc2
{[%clk 0:00:48.5]} 31. Qxa4 {[%clk 0:00:19.4]} 31... Rxb2 {[%clk 0:00:47.6]} 32.
Rxe5 {[%clk 0:00:19.9]} 32... dxe5 {[%clk 0:00:47.3]} 33. Rc1 {[%clk 0:00:20]}
33... Qd8 {[%clk 0:00:43.8]} 34. Qc4 {[%clk 0:00:15.3]} 34... Kg7 {[%clk
0:00:26.4]} 35. Kh1 {[%clk 0:00:14.3]} 35... h5 {[%clk 0:00:22.3]} 36. Qe6
{[%clk 0:00:13.6]} 36... e4 {[%clk 0:00:16.6]} 37. Rc8 {[%clk 0:00:11.4]} 37...
Rb1+ {[%clk 0:00:16.1]} 38. Kh2 {[%clk 0:00:11.6]} 38... Qxc8 {[%clk 0:00:11.6]}
39. Qxc8 {[%clk 0:00:11.4]} 39... e3 {[%clk 0:00:11]} 40. Qd7+ {[%clk
0:00:11.5]} 40... Kf8 {[%clk 0:00:08.6]} 41. Qd6+ {[%clk 0:00:11.2]} 41... Kg7
{[%clk 0:00:08.6]} 42. Qe7+ {[%clk 0:00:11.4]} 42... Kg8 {[%clk 0:00:09.5]} 43.
Qxe3 {[%clk 0:00:11.3]} 43... b5 {[%clk 0:00:09]} 44. Qe6+ {[%clk 0:00:11.2]}
44... Kg7 {[%clk 0:00:09.9]} 45. Qe7+ {[%clk 0:00:11.6]} 45... Kg8 {[%clk
0:00:10.7]} 46. Qxf6 {[%clk 0:00:12.1]} 46... g4 {[%clk 0:00:11.6]} 47. hxg4
{[%clk 0:00:12]} 47... hxg4 {[%clk 0:00:12.5]} 48. Qg6+ {[%clk 0:00:12.5]} 48...
Kf8 {[%clk 0:00:13.1]} 49. Qxg4 {[%clk 0:00:13.3]} 49... b4 {[%clk 0:00:12.9]}
50. Qxb4+ {[%clk 0:00:13.2]} 50... Kf7 {[%clk 0:00:13.7]} 51. Qxb1 {[%clk
0:00:13]} 1-0

[Event "*** SCC Grand Prix: Titled Tuesday Blitz"]
[Site "Chess.com"]
[Date "2020.07.14"]
[Round "3"]
[White "Caterpiller35"]
[Black "CzechmVIII"]
[Result "0-1"]
[WhiteElo "2446"]
[BlackElo "2205"]
[TimeControl "180+1"]
[EndTime "10:29:17 PDT"]
[Termination "CzechmVIII won by resignation"]

1. d4 {[%clk 0:03:00]} 1... Nf6 {[%clk 0:02:59.4]} 2. Bg5 {[%clk 0:02:59.3]}
2... c5 {[%clk 0:02:58]} 3. d5 {[%clk 0:02:59.1]} 3... Ne4 {[%clk 0:02:56.9]} 4.
Bc1 {[%clk 0:02:56.8]} 4... d6 {[%clk 0:02:49.6]} 5. f3 {[%clk 0:02:56.2]} 5...
Nf6 {[%clk 0:02:49.7]} 6. e4 {[%clk 0:02:56.1]} 6... g6 {[%clk 0:02:49.9]} 7. c4
{[%clk 0:02:56.2]} 7... Bg7 {[%clk 0:02:49.7]} 8. Nc3 {[%clk 0:02:56.9]} 8... e6
{[%clk 0:02:49.9]} 9. Be3 {[%clk 0:02:55.9]} 9... exd5 {[%clk 0:02:50]} 10. cxd5
{[%clk 0:02:54.6]} 10... O-O {[%clk 0:02:48.5]} 11. Bc4 {[%clk 0:02:51.7]} 11...
a6 {[%clk 0:02:41.3]} 12. a4 {[%clk 0:02:50.6]} 12... Re8 {[%clk 0:02:38.2]} 13.
Nge2 {[%clk 0:02:50]} 13... Nbd7 {[%clk 0:02:38.2]} 14. O-O {[%clk 0:02:46.5]}
14... Ne5 {[%clk 0:02:34.2]} 15. Ba2 {[%clk 0:02:46.2]} 15... Rb8 {[%clk
0:02:24.3]} 16. h3 {[%clk 0:02:20]} 16... b5 {[%clk 0:02:24.1]} 17. axb5 {[%clk
0:02:18.9]} 17... axb5 {[%clk 0:02:25]} 18. f4 {[%clk 0:02:18]} 18... Nc4 {[%clk
0:02:16.9]} 19. Bxc4 {[%clk 0:02:17.9]} 19... bxc4 {[%clk 0:02:17.1]} 20. Qc2
{[%clk 0:02:18.5]} 20... Nxe4 {[%clk 0:02:01.9]} 21. Nxe4 {[%clk 0:02:04]} 21...
f5 {[%clk 0:01:58.8]} 22. N2c3 {[%clk 0:01:41.9]} 22... fxe4 {[%clk 0:01:56.1]}
23. Ra4 {[%clk 0:01:01.9]} 23... Bd4 {[%clk 0:01:40.3]} 24. Bxd4 {[%clk
0:00:57.3]} 24... cxd4 {[%clk 0:01:40.2]} 25. Nxe4 {[%clk 0:00:58]} 25... Bf5
{[%clk 0:01:18.1]} 26. Re1 {[%clk 0:00:57.5]} 26... d3 {[%clk 0:01:00.1]} 27.
Qxc4 {[%clk 0:00:44.5]} 27... d2 {[%clk 0:00:59.5]} 28. Nxd2 {[%clk 0:00:27.9]}
28... Rxe1+ {[%clk 0:00:58.7]} 29. Kh2 {[%clk 0:00:28.6]} 29... Qe7 {[%clk
0:00:40.2]} 30. Nf3 {[%clk 0:00:21.2]} 30... Re4 {[%clk 0:00:37.8]} 31. Qc6
{[%clk 0:00:19.2]} 31... Rxa4 {[%clk 0:00:34.8]} 32. Qxa4 {[%clk 0:00:20.1]}
32... Rxb2 {[%clk 0:00:33.1]} 33. Ng5 {[%clk 0:00:14.7]} 33... h6 {[%clk
0:00:28.1]} 34. Qa8+ {[%clk 0:00:09.5]} 34... Kg7 {[%clk 0:00:27.4]} 35. Qa1
{[%clk 0:00:03.7]} 35... hxg5 {[%clk 0:00:18.8]} 36. Qxb2+ {[%clk 0:00:02.7]}
36... Qf6 {[%clk 0:00:18.3]} 37. Qb7+ {[%clk 0:00:01.6]} 37... Kh6 {[%clk
0:00:18.3]} 38. fxg5+ {[%clk 0:00:01.6]} 38... Qxg5 {[%clk 0:00:18.6]} 39. Qc7
{[%clk 0:00:01.3]} 39... Qf4+ {[%clk 0:00:18.4]} 40. Kg1 {[%clk 0:00:01.8]}
40... Qc1+ {[%clk 0:00:17.6]} 41. Kh2 {[%clk 0:00:02.1]} 41... Qf4+ {[%clk
0:00:17.8]} 42. Kg1 {[%clk 0:00:02.6]} 42... Qe3+ {[%clk 0:00:18.1]} 43. Kh2
{[%clk 0:00:03.1]} 43... Qe5+ {[%clk 0:00:17.8]} 44. Kg1 {[%clk 0:00:03.4]}
44... Qxd5 {[%clk 0:00:16.9]} 45. Qe7 {[%clk 0:00:04]} 45... Qd1+ {[%clk
0:00:15.9]} 46. Kh2 {[%clk 0:00:04.3]} 46... Qd4 {[%clk 0:00:14.7]} 47. Qh4+
{[%clk 0:00:04]} 47... Qxh4 {[%clk 0:00:13.7]} 0-1

[Event "*** SCC Grand Prix: Titled Tuesday Blitz"]
[Site "Chess.com"]
[Date "2020.07.14"]
[Round "3"]
[White "ENEASZ"]
[Black "KetiGrant"]
[Result "1-0"]
[WhiteElo "2582"]
[BlackElo "2392"]
[TimeControl "180+1"]
[EndTime "10:29:19 PDT"]
[Termination "ENEASZ won by checkmate"]

1. e4 {[%clk 0:03:00.9]} 1... c5 {[%clk 0:02:59.1]} 2. c3 {[%clk 0:02:59.1]}
2... d5 {[%clk 0:02:57.9]} 3. exd5 {[%clk 0:02:58.9]} 3... Qxd5 {[%clk
0:02:58.8]} 4. d4 {[%clk 0:02:59.1]} 4... Nf6 {[%clk 0:02:59]} 5. Nf3 {[%clk
0:02:59]} 5... e6 {[%clk 0:02:59]} 6. Na3 {[%clk 0:02:53.1]} 6... Be7 {[%clk
0:02:58.5]} 7. Nb5 {[%clk 0:02:48.4]} 7... Qd8 {[%clk 0:02:56.9]} 8. dxc5 {[%clk
0:02:30.2]} 8... Bxc5 {[%clk 0:02:32.9]} 9. Qxd8+ {[%clk 0:02:27.4]} 9... Kxd8
{[%clk 0:02:32.1]} 10. Be3 {[%clk 0:02:19.5]} 10... Bxe3 {[%clk 0:02:28.5]} 11.
fxe3 {[%clk 0:02:20.4]} 11... Nc6 {[%clk 0:02:27.7]} 12. Rd1+ {[%clk 0:02:18.5]}
12... Ke7 {[%clk 0:02:24]} 13. Nbd4 {[%clk 0:01:43.2]} 13... Bd7 {[%clk
0:02:23.1]} 14. Bd3 {[%clk 0:01:18]} 14... Rhd8 {[%clk 0:02:21.9]} 15. h3 {[%clk
0:01:11]} 15... Nd5 {[%clk 0:02:19.9]} 16. Kf2 {[%clk 0:01:10]} 16... h6 {[%clk
0:02:18.4]} 17. Rhe1 {[%clk 0:01:09.5]} 17... Rac8 {[%clk 0:02:17.5]} 18. Bc2
{[%clk 0:01:05.6]} 18... Na5 {[%clk 0:02:12.3]} 19. Bb3 {[%clk 0:01:02.4]} 19...
Nxb3 {[%clk 0:02:11.5]} 20. axb3 {[%clk 0:01:03.3]} 20... a6 {[%clk 0:02:10.1]}
21. b4 {[%clk 0:01:01.4]} 21... f6 {[%clk 0:02:07.2]} 22. Nb3 {[%clk 0:00:59.8]}
22... Bb5 {[%clk 0:02:05.2]} 23. Nfd4 {[%clk 0:00:52.7]} 23... Ba4 {[%clk
0:01:59.1]} 24. Ra1 {[%clk 0:00:52.4]} 24... Bxb3 {[%clk 0:01:51.1]} 25. Nxb3
{[%clk 0:00:53.3]} 25... Nb6 {[%clk 0:01:51]} 26. Na5 {[%clk 0:00:47.5]} 26...
Rc7 {[%clk 0:01:49.4]} 27. Red1 {[%clk 0:00:46.3]} 27... Rcd7 {[%clk 0:01:44.7]}
28. Ke2 {[%clk 0:00:42.8]} 28... e5 {[%clk 0:01:43.5]} 29. Rxd7+ {[%clk
0:00:40.8]} 29... Rxd7 {[%clk 0:01:43.1]} 30. e4 {[%clk 0:00:41.7]} 30... g6
{[%clk 0:01:37.3]} 31. g4 {[%clk 0:00:40.8]} 31... Nc8 {[%clk 0:01:31.7]} 32.
Ke3 {[%clk 0:00:38.9]} 32... Nd6 {[%clk 0:01:31.1]} 33. Rd1 {[%clk 0:00:25.9]}
33... Nc4+ {[%clk 0:01:29.8]} 34. Ke2 {[%clk 0:00:25.6]} 34... Nxa5 {[%clk
0:01:08.5]} 35. bxa5 {[%clk 0:00:23]} 35... Rxd1 {[%clk 0:01:08.6]} 36. Kxd1
{[%clk 0:00:23.9]} 36... Kd6 {[%clk 0:01:08.8]} 37. Kc2 {[%clk 0:00:24.1]} 37...
Kc5 {[%clk 0:01:08.3]} 38. Kd3 {[%clk 0:00:21.6]} 38... Kb5 {[%clk 0:01:00.8]}
39. b4 {[%clk 0:00:21]} 39... g5 {[%clk 0:00:56.2]} 40. Kd2 {[%clk 0:00:16.2]}
40... Ka4 {[%clk 0:00:51.3]} 41. Kc2 {[%clk 0:00:14.4]} 41... Ka3 {[%clk
0:00:51.2]} 42. Kc1 {[%clk 0:00:10.3]} 42... Kb3 {[%clk 0:00:50.4]} 43. Kd2
{[%clk 0:00:10.4]} 43... Kc4 {[%clk 0:00:47.6]} 44. Kc2 {[%clk 0:00:10.4]} 44...
Kb5 {[%clk 0:00:46.2]} 45. Kb3 {[%clk 0:00:10.5]} 45... b6 {[%clk 0:00:45.4]}
46. c4+ {[%clk 0:00:09.7]} 46... Kc6 {[%clk 0:00:45]} 47. axb6 {[%clk
0:00:09.6]} 47... Kxb6 {[%clk 0:00:44.5]} 48. Ka4 {[%clk 0:00:09.9]} 48... Kc6
{[%clk 0:00:37.8]} 49. Ka5 {[%clk 0:00:10]} 49... Kb7 {[%clk 0:00:37.6]} 50. c5
{[%clk 0:00:10.3]} 50... Ka7 {[%clk 0:00:36.2]} 51. c6 {[%clk 0:00:10.5]} 51...
h5 {[%clk 0:00:32.4]} 52. gxh5 {[%clk 0:00:08.9]} 52... f5 {[%clk 0:00:32.5]}
53. h6 {[%clk 0:00:07.1]} 53... fxe4 {[%clk 0:00:31.7]} 54. h7 {[%clk
0:00:07.4]} 54... e3 {[%clk 0:00:31.9]} 55. h8=Q {[%clk 0:00:07.8]} 55... e2
{[%clk 0:00:32.2]} 56. Qg7+ {[%clk 0:00:08.5]} 56... Kb8 {[%clk 0:00:30.9]} 57.
Qb7# {[%clk 0:00:09.4]} 1-0

[Event "*** SCC Grand Prix: Titled Tuesday Blitz"]
[Site "Chess.com"]
[Date "2020.07.14"]
[Round "3"]
[White "AungTZ"]
[Black "WelshTiger"]
[Result "1/2-1/2"]
[WhiteElo "2135"]
[BlackElo "2369"]
[TimeControl "180+1"]
[EndTime "10:29:19 PDT"]
[Termination "Game drawn by repetition"]

1. e4 {[%clk 0:03:00.9]} 1... c5 {[%clk 0:02:58.2]} 2. Nf3 {[%clk 0:03:00.3]}
2... Nc6 {[%clk 0:02:58]} 3. Bb5 {[%clk 0:02:59.5]} 3... g6 {[%clk 0:02:57.8]}
4. O-O {[%clk 0:02:59.2]} 4... Bg7 {[%clk 0:02:57.9]} 5. c3 {[%clk 0:02:59.6]}
5... Nf6 {[%clk 0:02:49.6]} 6. Re1 {[%clk 0:02:56.9]} 6... O-O {[%clk
0:02:45.7]} 7. d4 {[%clk 0:02:55.7]} 7... d5 {[%clk 0:02:45.3]} 8. e5 {[%clk
0:01:30.2]} 8... Ne4 {[%clk 0:02:40.4]} 9. Nbd2 {[%clk 0:01:26.4]} 9... Nxd2
{[%clk 0:02:29.1]} 10. Bxd2 {[%clk 0:01:25.8]} 10... cxd4 {[%clk 0:02:26.7]} 11.
cxd4 {[%clk 0:01:25.3]} 11... Bg4 {[%clk 0:02:25.2]} 12. Bxc6 {[%clk 0:01:24.6]}
12... bxc6 {[%clk 0:02:23.9]} 13. h3 {[%clk 0:01:24.6]} 13... Bf5 {[%clk
0:02:18.6]} 14. b4 {[%clk 0:01:23.4]} 14... Qc8 {[%clk 0:01:54]} 15. Rc1 {[%clk
0:01:17.4]} 15... Qa6 {[%clk 0:01:53.5]} 16. Qb3 {[%clk 0:01:10.1]} 16... Bd3
{[%clk 0:01:48]} 17. a3 {[%clk 0:01:07.8]} 17... Bc4 {[%clk 0:01:48.1]} 18. Qb2
{[%clk 0:01:03.9]} 18... Rfb8 {[%clk 0:01:44.8]} 19. Bg5 {[%clk 0:00:59.6]}
19... Qb7 {[%clk 0:01:43.4]} 20. Nd2 {[%clk 0:00:52]} 20... f6 {[%clk
0:01:20.7]} 21. exf6 {[%clk 0:00:48.9]} 21... exf6 {[%clk 0:01:20.4]} 22. Bf4
{[%clk 0:00:48.8]} 22... Re8 {[%clk 0:01:18.8]} 23. Nxc4 {[%clk 0:00:47.2]}
23... dxc4 {[%clk 0:01:17.7]} 24. Rxe8+ {[%clk 0:00:44.1]} 24... Rxe8 {[%clk
0:01:17.6]} 25. Rxc4 {[%clk 0:00:44.2]} 25... Qd7 {[%clk 0:01:11.6]} 26. Be3
{[%clk 0:00:32.7]} 26... Bf8 {[%clk 0:01:08.8]} 27. Qc2 {[%clk 0:00:32.1]} 27...
Re6 {[%clk 0:01:08.6]} 28. a4 {[%clk 0:00:26.1]} 28... a6 {[%clk 0:01:08.1]} 29.
Qb3 {[%clk 0:00:21.5]} 29... Qd5 {[%clk 0:01:03.1]} 30. Qc3 {[%clk 0:00:20]}
30... f5 {[%clk 0:01:01]} 31. g3 {[%clk 0:00:16.3]} 31... Bg7 {[%clk 0:01:00.7]}
32. h4 {[%clk 0:00:15.5]} 32... Qf3 {[%clk 0:00:54.5]} 33. Bf4 {[%clk
0:00:13.6]} 33... Qd1+ {[%clk 0:00:49]} 34. Kg2 {[%clk 0:00:12.9]} 34... Re1
{[%clk 0:00:49.1]} 35. Rxc6 {[%clk 0:00:08.6]} 35... Rg1+ {[%clk 0:00:48.4]} 36.
Kh2 {[%clk 0:00:09.1]} 36... Rh1+ {[%clk 0:00:42.1]} 37. Kg2 {[%clk 0:00:08.5]}
37... Rg1+ {[%clk 0:00:13]} 38. Kh2 {[%clk 0:00:08.3]} 38... Rh1+ {[%clk
0:00:06.7]} 39. Kg2 {[%clk 0:00:08.4]} 39... Qf1+ {[%clk 0:00:05.5]} 40. Kf3
{[%clk 0:00:08.1]} 40... Qd1+ {[%clk 0:00:01.9]} 41. Kg2 {[%clk 0:00:07.8]}
1/2-1/2